bitfinex/quotes_ETHUSD_20250908
["timestamp","ask_amount","ask_price","bid_price","bid_amount"]
[1757294355343,3.931,4298.0,4297.8,2.32675799]
[1757294355543,3.931,4298.0,4297.6,3.116]
[1757294355544,0.2955,4297.9,4297.6,0.116]
[1757294355794,3.931,4298.0,4297.8,2.32675636]
[1757294356853,3.931,4298.0,4297.7,2.32681008]
[1757294357987,3.931,4298.0,4297.9,2.32671769]
[1757294358387,3.931,4298.0,4297.9,0.3057]
[1757294358556,3.931,4298.0,4297.9,2.63241769]
[1757294359289,3.927,4298.3,4298.2,2.3265553]
[1757294359470,1e-08,4298.4,4298.2,3.3057]
[1757294359779,1e-08,4298.4,4298.3,2.32650117]
[1757294360549,1e-08,4298.4,4298.3,2.63220117]
[1757294361084,1e-08,4298.4,4298.3,3.08410117]
[1757294361294,1e-08,4298.4,4298.3,2.63220117]
[1757294361600,1e-08,4298.4,4298.3,6.56600117]
[1757294364998,1e-08,4298.4,4298.3,6.68200117]
[1757294370602,1e-08,4298.4,4298.3,10.60400117]
[1757294371671,1e-08,4298.4,4298.3,10.60500117]
[1757294371917,1e-08,4298.4,4298.3,6.68200117]
[1757294372403,1e-08,4298.4,4298.3,10.5848603]
[1757294372704,0.30370001,4298.4,4298.3,9.36550117]
[1757294373880,0.30370001,4298.4,4298.3,5.44250117]
[1757294374101,0.30370001,4298.4,4298.3,9.36550117]
[1757294375193,1.23680001,4298.4,4298.3,5.44250117]
[1757294375377,1.23680001,4298.4,4298.3,9.36550117]
[1757294379022,1.23680001,4298.4,4298.3,9.36350117]
[1757294379238,1.23680001,4298.4,4298.3,5.44250117]
[1757294380525,1.23680001,4298.4,4297.8,0.002]
[1757294380526,0.792,4298.3,4297.8,0.002]
[1757294380822,0.792,4298.3,4297.8,2.32877154]
[1757294380988,0.3037,4297.9,4297.8,2.32877154]
[1757294381420,1.2368,4297.9,4297.8,0.002]
[1757294381791,0.9868,4297.9,4297.8,0.002]
[1757294382526,1.7788,4297.9,4297.8,0.002]
[1757294382827,2.62782388,4297.9,4297.8,0.002]
[1757294383397,4.95454157,4297.9,4297.8,0.002]
[1757294383594,2.62782388,4297.9,4297.8,0.002]
[1757294384189,4.95454157,4297.9,4297.8,0.002]
[1757294384413,2.62782388,4297.9,4297.8,0.002]
[1757294384618,1.7788,4297.9,4297.8,0.002]
[1757294385833,5.2568,4297.9,4297.8,0.002]
[1757294386402,5.6988,4297.9,4297.8,0.002]
[1757294389401,8.02551769,4297.9,4297.8,0.002]
[1757294389733,8.2412193,4297.9,4297.8,0.002]
[1757294389931,9.77177115,4297.9,4297.8,0.002]
[1757294390639,9.77277115,4297.9,4297.8,0.002]
[1757294391538,9.55706954,4297.9,4297.8,0.002]
[1757294392274,2.32693426,4297.5,4297.4,0.002]
[1757294392397,3.11898841,4297.4,4297.3,1e-08]
[1757294392601,7.20379998,4297.4,4297.3,1e-08]
[1757294393124,7.77211235,4297.4,4297.3,1e-08]
[1757294393435,8.0530082,4297.4,4297.3,1e-08]
[1757294393633,9.96802241,4297.4,4297.3,1e-08]
[1757294394246,10.50390999,4297.1,4297.0,0.002]
[1757294394427,14.63832156,4297.1,4297.0,0.002]
[1757294394732,15.47996662,4297.1,4297.0,0.002]
[1757294395234,15.26490999,4297.1,4297.0,0.002]
[1757294395425,17.25089934,4297.1,4297.0,0.002]
[1757294396140,6.11920502,4297.0,4296.8,1e-08]
[1757294396525,6.96125918,4296.9,4296.8,1e-08]
[1757294397841,10.87925918,4296.9,4296.8,1e-08]
[1757294398709,17.93925918,4296.9,4296.8,1e-08]
[1757294398919,16.28916715,4296.9,4296.8,1e-08]
[1757294399343,20.20716715,4296.9,4296.8,1e-08]
[1757294401118,16.28916715,4296.9,4296.8,1e-08]
[1757294401319,20.20616715,4296.9,4296.8,1e-08]
[1757294402431,16.28916715,4296.9,4296.8,1e-08]
[1757294402621,24.59192628,4296.9,4296.8,1e-08]
[1757294403922,24.59092628,4296.9,4296.8,1e-08]
[1757294404424,24.58992628,4296.9,4296.8,1e-08]
[1757294404623,20.67392628,4296.9,4296.8,1e-08]
[1757294405024,24.58992628,4296.9,4296.8,1e-08]
[1757294405928,24.80459165,4296.9,4296.8,1e-08]
[1757294406137,3.0,4296.8,4295.8,0.027]
[1757294406443,7.50456005,4295.9,4295.8,0.027]
[1757294406643,20.56396005,4295.9,4295.8,0.027]
[1757294407212,20.73620679,4295.9,4295.8,0.027]
[1757294409670,9.64,4295.9,4295.8,0.3258]
[1757294409817,12.764,4295.9,4295.8,1.2288]
[1757294410017,15.88380092,4295.9,4295.8,1.2288]
[1757294410246,15.09180092,4295.9,4295.8,1.2288]
[1757294410552,15.88380092,4295.9,4295.8,1.2288]
[1757294410764,13.556,4295.9,4295.8,1.2288]
[1757294411133,15.88380092,4295.9,4295.8,1.2288]
[1757294413261,13.556,4295.9,4295.8,1.2288]
[1757294413760,15.88380092,4295.9,4295.8,1.2288]
[1757294416446,15.88380092,4295.9,4295.8,0.3258]
[1757294416873,15.88380092,4295.9,4295.8,0.7629]
[1757294417177,13.556,4295.9,4295.8,0.7629]
[1757294417974,13.556,4295.9,4295.8,1.2288]
[1757294418156,13.77166848,4295.9,4295.8,1.2288]
[1757294418363,16.0994694,4295.9,4295.8,1.2288]
[1757294419081,16.0994694,4295.9,4295.8,0.3258]
[1757294419469,13.77166848,4295.9,4295.8,0.3258]
[1757294419952,16.0994694,4295.9,4295.8,0.3258]
[1757294420345,16.0994694,4295.9,4295.8,0.7629]
[1757294420577,13.77166848,4295.9,4295.8,0.7629]
[1757294420980,16.0994694,4295.9,4295.8,0.7629]
[1757294421180,16.59768683,4295.9,4295.8,0.7629]
[1757294421386,14.26988591,4295.9,4295.8,0.7629]
[1757294421885,16.59768683,4295.9,4295.8,0.7629]
[1757294422800,18.95781937,4295.9,4295.8,0.027]
[1757294422967,19.32941937,4295.9,4295.8,0.027]
[1757294423315,19.32941937,4295.9,4294.1,1e-08]
[1757294423316,3.0,4295.4,4294.1,1e-08]
[1757294423476,0.792,4294.1,4293.1,0.02]
[1757294423654,7.79252401,4293.2,4293.1,0.02]
[1757294423856,3.12142765,4292.9,4292.8,1e-08]
[1757294424103,12.99596778,4292.9,4292.8,1e-08]
[1757294424399,5.48150402,4292.9,4292.8,1e-08]
[1757294424581,9.41050402,4292.9,4292.8,1e-08]
[1757294424900,10.78065141,4292.9,4292.8,1e-08]
[1757294425267,10.56273475,4292.9,4292.8,1e-08]
[1757294425999,10.56224594,4292.9,4292.8,1e-08]
[1757294426595,10.84484594,4292.9,4292.8,1e-08]
[1757294427170,8.91835471,4292.9,4292.8,1e-08]
[1757294427476,8.63575471,4292.9,4292.8,1e-08]
[1757294429478,8.91835471,4292.9,4292.8,1e-08]
[1757294429669,9.38109885,4292.9,4292.8,1e-08]
[1757294430513,9.9706248,4292.9,4292.8,1e-08]
[1757294432193,5.2001248,4292.9,4292.8,0.29650001]
[1757294432369,8.63383899,4292.9,4292.8,0.29650001]
[1757294432764,4.70583899,4292.9,4292.8,1e-08]
[1757294432964,8.63483899,4292.9,4292.8,1e-08]
[1757294433388,4.70583899,4292.9,4292.8,1e-08]
[1757294433594,8.63483899,4292.9,4292.8,1e-08]
[1757294433908,8.63483899,4292.9,4292.8,0.29650001]
[1757294434274,4.70583899,4292.9,4292.8,0.29650001]
[1757294434474,8.63383899,4292.9,4292.8,0.29650001]
[1757294434900,8.91463899,4292.9,4292.8,1e-08]
[1757294435204,9.37803899,4292.9,4292.8,1e-08]
[1757294435906,9.47533899,4292.9,4292.8,1e-08]
[1757294437105,16.53533899,4292.9,4292.8,1e-08]
[1757294437308,20.02860602,4292.9,4292.8,1e-08]
[1757294439272,2.329699,4292.4,4292.3,0.002]
[1757294439597,16.57889543,4292.4,4292.3,0.002]
[1757294439783,20.91356246,4292.4,4292.3,0.002]
[1757294441808,20.91256246,4292.4,4292.3,0.002]
[1757294445010,16.88646246,4292.4,4292.3,0.002]
[1757294445175,20.91156246,4292.4,4292.3,0.002]
[1757294446214,21.12563927,4292.4,4292.3,0.002]
[1757294447197,24.97974879,4292.4,4292.3,0.002]
[1757294447779,16.63724879,4292.4,4292.3,0.002]
[1757294447985,20.28434879,4292.4,4292.3,0.002]
[1757294448330,20.28334879,4292.4,4292.3,0.002]
[1757294449186,16.35834879,4292.4,4292.3,0.002]
[1757294449390,13.35834879,4292.4,4292.3,0.2985]
[1757294449587,16.60222998,4292.4,4292.3,1.2057]
[1757294450323,12.89305329,4292.4,4292.3,1.2057]
[1757294450715,16.60222998,4292.4,4292.3,1.2057]
[1757294451303,16.81736761,4292.4,4292.3,1.2057]
[1757294451941,10.56366861,4292.4,4292.3,1.2057]
[1757294452128,16.60222998,4292.4,4292.3,1.2057]
[1757294452424,16.8178086,4292.4,4292.3,1.2057]
[1757294455806,12.8938086,4292.4,4292.3,1.2057]
[1757294456014,16.8148086,4292.4,4292.3,1.2057]
[1757294456218,19.58045019,4292.4,4292.3,0.002]
[1757294456510,3.12180755,4292.2,4292.1,0.02]
[1757294456722,15.02591715,4292.2,4292.1,0.02]
[1757294456929,17.47694292,4292.2,4292.1,0.02]
[1757294459601,17.18124292,4292.2,4292.1,0.3154]
[1757294460110,17.18124292,4292.2,4292.1,0.02]
[1757294460305,17.47474292,4292.2,4292.1,0.02]
[1757294460499,17.18124292,4292.2,4292.1,0.3154]
[1757294460700,13.26024292,4292.2,4292.1,0.3154]
[1757294460937,15.02491715,4292.2,4292.1,1.2395]
[1757294461317,11.10491715,4292.2,4292.1,1.2395]
[1757294461517,15.02491715,4292.2,4292.1,0.779]
[1757294462105,11.10491715,4292.2,4292.1,0.779]
[1757294462308,14.23291715,4292.2,4292.1,1.2395]
[1757294462704,15.02491715,4292.2,4292.1,1.2395]
[1757294462913,7.9831096,4292.2,4292.1,1.2395]
[1757294463135,12.98426395,4292.2,4292.1,1.2395]
[1757294463642,13.77626395,4292.2,4292.1,1.2395]
[1757294466541,9.85626395,4292.2,4292.1,1.2395]
[1757294466712,9.97226395,4292.2,4292.1,1.2395]
[1757294467040,13.89226395,4292.2,4292.1,1.2395]
[1757294467420,9.18026395,4292.2,4292.1,3.56936183]
[1757294467744,12.98426395,4292.2,4292.1,3.56936183]
[1757294468315,13.77626395,4292.2,4292.1,0.3154]
[1757294468551,13.77626395,4292.2,4292.1,0.02]
[1757294468552,18.75222574,4292.2,4292.1,0.02]
[1757294468741,19.04863274,4292.2,4292.1,0.02]
[1757294469046,18.83262574,4292.2,4292.1,0.02]
[1757294469248,14.35922574,4292.2,4292.1,0.02]
[1757294469562,14.27399179,4292.2,4292.1,0.779]
[1757294469860,16.60379934,4292.2,4292.1,0.779]
[1757294470548,16.60379934,4292.2,4292.1,0.3154]
[1757294470869,16.60379934,4292.2,4292.1,0.02]
[1757294471612,16.60379934,4292.2,4292.1,0.3154]
[1757294471815,10.35399179,4292.2,4292.1,0.779]
[1757294472047,10.35399179,4292.2,4292.1,1.2395]
[1757294472048,13.77806346,4292.2,4292.1,1.2395]
[1757294472617,9.85806346,4292.2,4292.1,1.2395]
[1757294472818,9.06606346,4292.2,4292.1,3.56936183]
[1757294473020,12.98606346,4292.2,4292.1,3.56936183]
[1757294473744,12.98606346,4292.2,4292.1,1.2395]
[1757294474553,5.92606346,4292.2,4292.1,1.2395]
[1757294474952,5.92606346,4292.2,4292.1,3.56936183]
[1757294475140,5.71,4292.2,4292.1,3.56936183]
[1757294476454,5.71,4292.2,4292.1,1.2395]
[1757294476631,5.71,4292.2,4292.1,3.56936183]
[1757294477654,5.71,4292.2,4292.1,6.56936183]
[1757294481027,1.79,4292.2,4292.1,6.56936183]
[1757294481227,5.71,4292.2,4292.1,6.56936183]
[1757294482766,5.71,4292.2,4292.1,6.57136183]
[1757294484166,0.001,4292.3,4292.1,6.57136183]
[1757294484167,0.001,4292.3,4292.2,5.32980755]
[1757294484465,3.921,4292.3,4292.2,3.25510755]
[1757294484632,3.921,4292.3,4292.2,3.56990755]
[1757294485130,0.001,4292.3,4292.2,3.56990755]
[1757294486163,0.001,4292.3,4292.2,3.56345755]
[1757294486339,0.001,4292.3,4292.2,6.56345755]
[1757294487734,0.001,4292.3,4292.2,6.67945755]
[1757294490358,0.0048,4292.3,4292.1,0.022]
[1757294490560,0.0048,4292.3,4292.1,2.35185357]
[1757294490988,0.0048,4292.3,4292.2,2.32980755]
[1757294491695,1.6566,4292.3,4292.1,0.022]
[1757294491855,1.41736,4292.2,4292.1,0.022]
[1757294492256,1.42476,4292.2,4292.1,0.022]
[1757294492571,1.6592,4292.2,4292.1,0.022]
[1757294493769,3.98900755,4292.2,4292.1,0.022]
[1757294494179,1.6592,4292.2,4292.1,0.022]
[1757294495185,3.98900755,4292.2,4292.1,0.022]
[1757294497280,4.20497706,4292.2,4292.1,0.022]
[1757294497500,5.25044489,4292.2,4292.1,0.022]
[1757294498223,8.79784489,4292.2,4292.1,0.022]
[1757294498453,9.16574489,4292.2,4292.1,0.022]
[1757294499416,2.91693734,4292.2,4292.1,0.022]
[1757294499602,8.12026619,4292.2,4292.1,0.022]
[1757294501280,15.18026619,4292.2,4292.1,0.022]
[1757294504886,15.18026619,4292.2,4292.1,1e-08]
[1757294505116,15.18026619,4292.2,4291.8,0.027]
[1757294505117,6.1219704,4291.9,4291.8,1e-08]
[1757294505322,6.12218758,4291.5,4291.4,1e-08]
[1757294505482,18.18497642,4291.5,4291.4,1e-08]
[1757294505693,19.18571822,4291.5,4291.4,1e-08]
[1757294505912,0.792,4291.2,4289.8,0.025]
[1757294506222,6.122785,4290.4,4289.8,0.025]
[1757294506519,10.4166523,4290.4,4289.8,0.025]
[1757294506728,12.54048852,4290.4,4289.8,0.025]
[1757294509442,12.32452988,4290.4,4289.8,0.025]
[1757294511238,12.32552988,4290.4,4289.8,0.025]
[1757294514355,16.73202181,4290.4,4289.8,0.025]
[1757294516229,16.94623284,4290.4,4289.8,0.025]
[1757294517051,19.40023284,4290.4,4289.8,0.025]
[1757294517252,16.94623284,4290.4,4289.8,0.025]
[1757294518566,12.53974091,4290.4,4289.8,0.025]
[1757294518764,7.77064091,4290.4,4289.8,0.025]
[1757294518972,11.69164091,4290.4,4289.8,0.025]
[1757294519338,12.54674091,4290.4,4289.8,0.025]
[1757294519569,8.62574091,4290.4,4289.8,0.025]
[1757294519731,13.03223284,4290.4,4289.8,0.025]
[1757294519935,16.95323284,4290.4,4289.8,0.025]
[1757294520239,16.95323284,4290.4,4289.8,0.027]
[1757294520638,3.12360017,4288.9,4288.8,0.025]
[1757294520946,8.83560017,4288.9,4288.8,0.477]
[1757294521156,8.83560017,4288.9,4288.8,1.2646]
[1757294521469,6.504,4288.9,4288.8,1.2646]
[1757294521670,8.83560017,4288.9,4288.8,1.2646]
[1757294522939,8.83560017,4288.9,4288.8,0.7888]
[1757294523378,8.95771503,4288.9,4288.8,0.7888]
[1757294524262,10.58463628,4288.9,4288.8,0.025]
[1757294524588,10.95623628,4288.9,4288.8,0.025]
[1757294525141,10.75546876,4288.9,4288.8,0.025]
[1757294525342,11.34169285,4288.9,4288.8,0.025]
[1757294526052,10.97009285,4288.9,4288.8,0.025]
[1757294526468,11.34169285,4288.9,4288.8,0.025]
[1757294527135,11.34169285,4288.9,4288.8,1e-08]
[1757294527349,3.12439365,4287.5,4287.4,0.452]
[1757294527544,2.583,4287.5,4287.4,1.2396]
[1757294527782,6.505,4287.5,4287.4,1.2396]
[1757294529081,8.94828968,4287.5,4287.4,1.2396]
[1757294529283,8.94828968,4287.5,4287.4,0.3118]
[1757294529482,6.61592817,4287.5,4287.4,1.2396]
[1757294529787,8.94828968,4287.5,4287.4,1.2396]
[1757294529960,6.61592817,4287.5,4287.4,0.7638]
[1757294530299,6.61592817,4287.5,4287.4,1.2396]
[1757294532396,2.69392817,4287.5,4287.4,1.2396]
[1757294532684,6.61592817,4287.5,4287.4,1.2396]
[1757294533248,2.69392817,4287.5,4287.4,1.2396]
[1757294533500,6.61592817,4287.5,4287.4,1.2396]
[1757294534697,2.69392817,4287.5,4287.4,1.2396]
[1757294535094,5.82392817,4287.5,4287.4,1.2396]
[1757294535591,6.61592817,4287.5,4287.4,1.2396]
[1757294536775,6.61592817,4287.5,4287.4,3.57201591]
[1757294537097,6.61592817,4287.5,4287.4,1.2396]
[1757294538183,6.61592817,4287.5,4287.4,3.57201591]
[1757294538520,6.61592817,4287.5,4287.4,1.2396]
[1757294540393,6.61592817,4287.5,4287.4,3.57201591]
[1757294540394,1.90192817,4287.5,4287.4,3.57201591]
[1757294540573,5.82392817,4287.5,4287.4,3.57201591]
[1757294540769,5.82392817,4287.5,4287.4,1.2396]
[1757294540989,5.82392817,4287.5,4287.4,3.57201591]
[1757294541586,5.82392817,4287.5,4287.4,1.2396]
[1757294541786,5.82392817,4287.5,4287.4,3.57201591]
[1757294544316,5.82392817,4287.5,4287.4,7.97956987]
[1757294544889,1.90192817,4287.5,4287.4,7.97956987]
[1757294545600,5.82392817,4287.5,4287.4,7.97956987]
[1757294547309,1.90192817,4287.5,4287.4,7.97956987]
[1757294547607,5.82392817,4287.5,4287.4,10.97956987]
[1757294552433,5.82392817,4287.5,4287.3,0.116]
[1757294552728,0.792,4287.4,4287.3,4.40755396]
[1757294554605,0.7994,4287.4,4287.3,4.40755396]
[1757294556301,0.792,4287.4,4287.3,5.55434174]
[1757294556535,0.792,4287.4,4287.3,5.55634174]
[1757294558138,0.792,4287.4,4287.3,7.88881205]
[1757294558603,0.792,4287.4,4287.3,8.20211205]
[1757294559441,0.792,4287.4,4287.3,8.66111205]
[1757294559617,1.90192817,4287.5,4287.4,2.33241591]
[1757294559814,5.82392817,4287.5,4287.4,3.59491591]
[1757294560043,1.90192817,4287.5,4287.4,3.59491591]
[1757294560345,5.82392817,4287.5,4287.4,6.71091591]
[1757294561540,4.03292817,4287.5,4287.4,6.71091591]
[1757294561728,0.11092817,4287.5,4287.4,6.71091591]
[1757294561940,4.03292817,4287.5,4287.4,6.71091591]
[1757294563747,0.11092817,4287.5,4287.4,6.71091591]
[1757294565030,3.922,4287.7,4287.6,2.33230711]
[1757294565332,3.922,4287.7,4287.6,6.59480711]
[1757294565533,3.922,4287.7,4287.6,6.71080711]
[1757294565918,0.001,4288.8,4288.1,2.33203516]
[1757294566266,0.001,4288.8,4288.7,5.86764174]
[1757294566267,0.793,4288.8,4288.7,5.86764174]
[1757294566562,3.923,4288.8,4288.7,5.86764174]
[1757294566733,4.715,4288.8,4288.7,5.86764174]
[1757294566932,4.7188,4288.8,4288.7,5.55434174]
[1757294568253,4.7188,4288.8,4288.7,8.19935064]
[1757294568254,4.715,4288.8,4288.7,8.19935064]
[1757294568550,5.017,4288.8,4288.7,5.55434174]
[1757294569959,5.4843,4288.8,4288.7,5.55434174]
[1757294570158,5.5606,4288.8,4288.7,5.55434174]
[1757294570522,1.6386,4288.8,4288.7,5.55434174]
[1757294570724,0.792,4288.7,4288.3,5.67034174]
[1757294571045,1.3356,4288.7,4288.3,8.00224326]
[1757294571358,0.302,4288.4,4288.3,8.00224326]
[1757294571558,3.921,4288.4,4288.3,8.00224326]
[1757294572054,0.001,4288.8,4288.5,2.33178139]
[1757294572260,3.921,4288.7,4288.6,5.55434174]
[1757294572557,3.921,4288.7,4288.6,5.86764174]
[1757294573424,3.921,4288.7,4288.6,6.30924174]
[1757294573760,0.793,4288.8,4288.6,6.30924174]
[1757294573924,3.921,4288.7,4288.6,5.86764174]
[1757294574559,0.001,4288.8,4288.6,6.30924174]
[1757294574760,0.001,4288.8,4288.7,3.2721089]
[1757294574966,3.922,4288.8,4288.7,3.2721089]
[1757294575142,3.922,4288.8,4288.7,3.5631089]
[1757294577128,0.001,4288.8,4288.7,3.5631089]
[1757294577963,0.001,4288.8,4288.7,2.6227089]
[1757294578743,0.001,4288.8,4288.6,2.44774879]
[1757294578744,0.0048,4288.8,4288.6,2.44774879]
[1757294579538,0.0048,4288.8,4288.7,2.3317089]
[1757294580369,0.001,4288.8,4288.7,3.5631089]
[1757294580537,3.922,4288.8,4288.7,3.6791089]
[1757294581253,0.001,4288.8,4288.7,6.6791089]
[1757294581455,0.001,4289.2,4289.0,2.33154581]
[1757294581654,0.001,4289.7,4289.6,2.33121969]
[1757294581858,0.001,4289.7,4289.6,11.17656143]
[1757294582168,0.001,4289.7,4289.6,12.11696143]
[1757294583170,0.001,4289.7,4289.6,11.61816143]
[1757294583369,0.001,4289.7,4289.6,12.31812212]
[1757294585074,0.001,4289.7,4289.6,11.87652212]
[1757294585465,0.783,4289.7,4289.6,3.0]
[1757294585769,2.0477,4289.7,4289.6,3.0]
[1757294585965,0.3012,4289.7,4289.6,5.33121969]
[1757294586170,4.2212,4289.7,4289.6,5.33121969]
[1757294586899,0.3012,4289.7,4289.6,5.33121969]
[1757294587195,0.001,4289.7,4289.6,5.62221969]
[1757294587366,3.921,4289.7,4289.6,6.06381969]
[1757294587762,0.001,4289.7,4289.6,6.06381969]
[1757294587972,0.001,4289.7,4289.6,6.56261969]
[1757294588299,0.001,4289.7,4289.6,6.06381969]
[1757294588704,0.001,4289.7,4289.6,6.56261969]
[1757294589206,0.001,4289.7,4289.6,6.06381969]
[1757294590106,0.001,4289.7,4289.6,6.76380324]
[1757294590407,0.001,4289.7,4289.6,7.26260324]
[1757294591107,0.001,4289.7,4289.6,6.32220324]
[1757294591776,0.001,4289.7,4289.6,6.43820324]
[1757294594113,0.001,4289.7,4289.6,6.87980324]
[1757294594613,0.001,4289.7,4289.6,6.43820324]
[1757294594811,0.3012,4289.7,4289.6,6.14720324]
[1757294595312,0.783,4289.7,4289.6,6.14720324]
[1757294596743,0.001,4289.7,4289.6,7.37860324]
[1757294597020,3.254,4290.3,4290.2,2.33089366]
[1757294597220,3.254,4290.3,4290.2,8.6178354]
[1757294597428,3.254,4290.3,4290.2,8.7338354]
[1757294597717,3.254,4290.3,4290.2,9.2326354]
[1757294597920,3.919,4290.7,4290.5,2.33073068]
[1757294598135,3.919,4290.7,4290.6,5.33067636]
[1757294598412,3.919,4290.7,4290.6,11.1760181]
[1757294599057,3.919,4291.0,4290.7,5.33062204]
[1757294599547,3.919,4291.0,4290.7,5.62162204]
[1757294599938,1.791,4291.3,4290.7,5.62162204]
[1757294600238,3.919,4291.1,4290.7,6.76304884]
[1757294600749,0.3252,4290.8,4290.7,6.03044884]
[1757294600942,0.3252,4290.8,4290.7,3.6998268]
[1757294601142,2.10152,4290.8,4290.5,0.116]
[1757294601343,2.10152,4290.8,4290.3,3.0]
[1757294601344,0.0781,4290.7,4290.4,3.0]
[1757294601551,0.0038,4290.5,4290.2,0.69993945]
[1757294601752,0.8534,4290.4,4290.2,0.69993945]
[1757294601917,0.0074,4290.3,4290.1,3.0]
[1757294602117,0.8571,4290.3,4290.1,3.03090311]
[1757294602345,0.8497,4290.2,4290.1,3.03090311]
[1757294602611,0.8607,4290.2,4290.1,3.03090311]
[1757294603454,0.8607,4290.2,4290.1,3.03092827]
[1757294603655,0.4928,4290.2,4290.1,3.03092827]
[1757294604063,0.8572,4290.2,4290.1,3.03092827]
[1757294604556,0.8572,4290.2,4290.1,0.69998028]
[1757294605132,4.7762,4290.2,4290.0,2.33099314]
[1757294605337,0.8175,4290.1,4290.0,2.33099314]
[1757294605741,3.93,4290.2,4290.1,2.33094799]
[1757294605942,1.79,4290.5,4290.4,2.330785]
[1757294606142,5.9944,4290.5,4290.4,2.330785]
[1757294606487,6.5393,4290.5,4290.3,5.55434174]
[1757294606632,6.0862,4290.5,4290.3,5.55434174]
[1757294606957,0.4531,4290.4,4290.3,7.88518107]
[1757294607166,3.918,4290.4,4290.3,7.88518107]
[1757294607351,4.2025,4290.4,4290.3,5.55434174]
[1757294607547,0.7376,4290.4,4290.3,5.55434174]
[1757294607764,4.6556,4290.4,4290.3,5.55434174]
[1757294607963,4.6556,4290.4,4290.1,2.33093585]
[1757294608166,4.6556,4290.4,4290.2,2.33089153]
[1757294608655,4.2025,4290.4,4290.1,2.33094799]
[1757294609364,4.2025,4290.4,4289.9,5.55434174]
[1757294609365,3.918,4290.4,4290.3,0.2904]
[1757294609743,1.79,4290.5,4290.3,0.2904]
[1757294609744,1.79,4290.5,4290.4,2.330785]
[1757294609955,1.79,4290.5,4290.4,6.221785]
[1757294609956,5.708,4290.5,4290.4,6.221785]
[1757294610141,5.708,4290.5,4290.4,6.679785]
[1757294610346,5.708,4290.5,4290.4,6.89507384]
[1757294611154,5.708,4290.5,4290.4,6.43707384]
[1757294611350,5.708,4290.5,4290.4,6.14667384]
[1757294611551,7.8128,4290.5,4290.4,0.69988884]
[1757294611753,6.7864,4290.5,4290.2,5.55434174]
[1757294611957,6.9024,4290.5,4290.2,7.88519329]
[1757294612763,3.918,4290.4,4290.3,2.33082504]
[1757294613767,1.906,4290.5,4290.3,2.33082504]
[1757294613977,3.918,4290.4,4290.3,2.33082504]
[1757294614158,1.906,4290.5,4290.3,0.2904]
[1757294614365,3.918,4290.4,4290.3,0.2904]
[1757294614747,3.918,4290.4,4290.3,2.62123933]
[1757294615472,1.79,4290.5,4290.3,2.62123933]
[1757294615473,1.79,4290.5,4290.4,2.330785]
[1757294615678,5.708,4290.5,4290.4,2.788785]
[1757294615844,5.708,4290.5,4290.4,3.079185]
[1757294616477,5.709,4290.5,4290.4,2.621185]
[1757294616636,5.709,4290.5,4290.4,6.079185]
[1757294617171,1.791,4290.5,4290.4,6.563785]
[1757294617485,5.709,4290.5,4290.4,6.563785]
[1757294618176,1.791,4290.5,4290.4,5.621185]
[1757294618378,5.7128,4290.5,4290.4,5.330785]
[1757294618669,5.709,4290.5,4290.4,5.330785]
[1757294618878,5.7164,4290.5,4290.4,5.330785]
[1757294620289,6.5374,4290.5,4290.4,3.0]
[1757294622361,5.709,4290.5,4290.4,5.330785]
[1757294622559,5.72,4290.5,4290.4,5.330785]
[1757294624570,5.709,4290.5,4290.4,6.079185]
[1757294624796,5.709,4290.5,4290.4,6.563785]
[1757294625401,5.709,4290.5,4290.4,6.079185]
[1757294626560,1.791,4290.5,4290.4,6.079185]
[1757294627292,5.709,4290.5,4290.4,6.079185]
[1757294630069,0.001,4290.5,4290.4,6.563785]
[1757294630703,0.001,4290.5,4290.4,6.65709416]
[1757294631211,0.001,4290.5,4290.4,10.57509416]
[1757294632310,0.001,4291.0,4290.7,2.33062204]
[1757294632603,0.001,4291.0,4290.9,14.34661347]
[1757294632913,4.2933,4291.0,4290.9,2.33051341]
[1757294633205,4.2971,4291.0,4290.9,2.33051341]
[1757294633807,3.9218,4291.0,4290.9,2.33051341]
[1757294634228,4.405,4291.0,4290.9,2.33051341]
[1757294634407,4.7766,4291.0,4290.9,9.73143315]
[1757294634724,4.7766,4291.0,4290.8,6.73146933]
[1757294634899,3.9218,4291.0,4290.9,2.33051341]
[1757294635406,3.9218,4291.0,4290.8,6.73148223]
[1757294635618,0.8548,4290.9,4290.8,6.73148223]
[1757294635932,0.8548,4290.9,4290.8,4.40091974]
[1757294636225,0.8622,4290.9,4290.8,6.73148746]
[1757294636741,0.8622,4290.9,4290.8,2.33056772]
[1757294636933,0.8622,4290.9,4290.8,6.73148746]
[1757294637292,0.8622,4290.9,4290.8,4.40091974]
[1757294637496,0.8622,4290.9,4290.8,6.73148746]
[1757294638322,0.4906,4290.9,4290.8,6.73148746]
[1757294638524,0.001,4291.0,4290.9,2.33051341]
[1757294638716,3.918,4291.0,4290.9,2.33051341]
[1757294638917,4.2059,4291.0,4290.9,2.33051341]
[1757294639314,3.918,4291.0,4290.9,2.33051341]
[1757294640226,3.918,4291.0,4290.9,3.05181341]
[1757294640596,3.918,4291.0,4290.9,2.61951341]
[1757294640794,3.918,4291.0,4290.9,3.05181341]
[1757294641194,3.918,4291.0,4290.9,2.61951341]
[1757294642221,3.918,4291.0,4290.9,2.33051341]
[1757294643401,3.918,4291.0,4290.6,0.5483]
[1757294643402,3.918,4291.0,4290.7,0.69984965]
[1757294643602,3.918,4291.0,4290.0,6.73187456]
[1757294643603,0.792,4290.8,4289.6,3.002]
[1757294643816,3.917,4290.7,4290.4,5.33077416]
[1757294644023,0.5735,4290.6,4290.5,2.3307169]
[1757294644444,0.8594,4290.6,4290.5,2.3307169]
[1757294644649,0.7691,4290.6,4290.5,2.3307169]